Workbook

Sheet Cover
A1: =RIGHT(CELL("filename", $A$1), LEN(CELL("filename", $A$1)) - SEARCH("]", CELL("filename", $A$1))) -> Cover
C3: Model name: | D3: WINEP Reconciliation Model
C4: Version number: | D4: 1n
C5: Filename: | D5: WINEP-Reconciliation-Model-Dec-2020-v1n.xlsm
C6: Date: | D6: 2020-12-02
C7: Author: | D7: Ofwat
C8: Author contact information: | D8: OfwatPAndO@ofwat.gov.uk
C11: Summary of model: | D11: This illustrative model is designed to show how we will account for the impact of ministerial decisions on the scale of companies’ environmental enhancement programmes where this differs from our assumptions made at FD. Please note that, for brevity, the term 'WINEP' is used throughout. However, it should be taken to include both the WINEP in England and the NEP in Wales.
D12: On sheet "WINEP_Allowance" we set out the adjustments we will make for each scheme in the company's WINEP programme that at the time of the final determination was unconfirmed. We show what will happen to adjust allowed totex for cost sharing, whether the scheme is confirmed as required or confirmed not required for the period 2020-25. For some companies there will be schemes listed that were not included in our enhancement allowance when we made our final determinations. We will make an opposite adjustment for these.
D13: On sheet "WINEP_Schemes" we convert the units used for each company’s unit cost mechanism as set out in the Cost Efficiency appendix to the company summary document of our Final Determinations. This is a bespoke conversion required for each company and the units shown are for illustration. Not all units shown will be relevant to every company.
D14: For most schemes the proportion confirmed will be either 100% or 0%. We have included a 'Proportion Confirmed' column to allow for the possibility that a scheme is partially confirmed. For example, if a scheme involves work on all reservoirs in a region but some reservoirs are subsequently sold then a reconciliation will be made to recover a proportion of the scheme's costs.
D15: Where schemes have been partially removed the company must present evidence that the proportion remaining has been signed off by the Environment Agency or Natural Resources Wales.
D17: NB - The model price base is 'CPIH Financial year average 2017/18', unless otherwise stated.
C20: Known limitations: | D20: Issue | F20: Details | G20: Model link
D21: Illustrative Model | F21: This is an initial, illustrative model. We may make refinements to it in due course.
C23: Change Log: | D23: Sheet(s) in current model | F23: Description of change(s) made | G23: Model link(s)
D24: Track | F24: Linked to correct cells in model. Previously this was incorrectly linked to blank cells. Added some additional tracking lines. | G24: =Track!A1 -> Track
D25: User Guide | F25: Expanded the description of how to load the WINEP input data. | G25: ='User Guide'!D13 -> INITIAL SET UP
D26: WINEP_Schemes | F26: Relabelled "Quantity" as "Quantity in PR19 FD" | G26: =WINEP_Schemes!J9 -> Quantity in PR19 FD
D27: WINEP_Schemes | F27: Added new column "Quantity Delivered" and changed the input "Proportion confirmed" to be a calculation of "Quantity Delivered" divided by "Quantity in PR19 FD". | G27: =WINEP_Schemes!K9 -> Quantity Delivered
D28: WINEP_Schemes | F28: Changed all Inputs to be brought forward from the WINEP_Inputs sheet. This affects "Unit", "Unit Conversion", "Quantity" and "Price Control" | G28: =WINEP_Schemes!F9 -> Unit
D29: WINEP_Inputs | F29: Columns CR to CX now contain the WINEP inputs that need to be manually entered. The columns have been re-labelled for clarity. | G29: =WINEP_Inputs!CR3 -> WINEP model inputs
D30: Annual_Outputs | F30: Relabelled the WINEP reconciliation outputs and added additional text for clarity. | G30: =Annual_Outputs!E26 -> WINEP Reconciliation, water resources - without adjustment for time value of money
C32: Instructions: | D32: A model 'User guide' is present in the model to help the user in operating the model.
D33: Follow link >> | E33: Goto User Guide
C35: Error check status: | D35: =Check!$F$2 -> 0 | E35: =IF(D35 = 0, "No error checks", "Error checks active") -> No error checks
D36: =Check!$F$3 -> 5 | E36: =IF(D36 = 0, "No output changes", "Output changes") -> Output changes
A40: End of sheet

Sheet Documentation >>

Sheet User Guide
A1: =RIGHT(CELL("filename", $A$1), LEN(CELL("filename", $A$1)) - SEARCH("]", CELL("filename", $A$1))) -> User Guide
B3: INTRODUCTION
E5: This model will calculate the WINEP reconciliation adjustment in £m.
D7: NAVIGATION
E8: In order to navigate through the model the following key strokes will prove useful:
E9: - To go to a sheet or row select a blue font cell and then either press CTRL+ [ or double click
E10: - To return to the last position press F5 + Enter
E11: - In accordance with best practice, the model is saved with a "Manual Calculation" setting. To ensure a full recalculation press: Ctrl + Alt + F9
D13: INITIAL SET UP
E14: On first use of the model the WINEP_inputs sheet needs to be updated from the 2019 WINEP spreadsheet. You must use the list of WINEP sites as at Final Determination.
D16: 1) | E16: The WINEP_Inputs sheet needs to be setup so that the correct information is loaded onto the WINEP_Schemes sheet. Since all companies have used different units the procedure for doing this will vary. Most companies will be able to follow the steps below:
D17: Step 1 - | E17: In the WINEP workbook identify all schemes that were Amber in the PR19 Final Determination WINEP workbook.
D18: Step 2 - | E18: Copy the schemes to cell C5 of WINEP_Inputs maintaining the column layout of the PR19 Final Determination WINEP spreadsheet.
D19: Step 3 - | E19: Complete column CR for all rows, 'Allowed totex unit rate'. This feeds through to the WINEP_Schemes sheet and should be copied directly from the tables in the Cost Efficiency appendix to the company summary document of our Final Determinations.
D20: Step 4 - | E20: Complete column CS for all rows, 'Quantity proposed in PR19 FD. This feeds through to the WINEP_Schemes sheet and is the amount to be delivered as stated in the Cost Efficiency appendix to the company summary document of our Final Determinations. This should be entered in the appropriate units e.g. £m per benefit point, £ per km LORI, £ per kgP/day removed, etc
D21: Step 5 - | E21: Complete column CT for all rows, 'Quantity Delivered'. This feeds through to the WINEP_Schemes sheet and is the actual amount delivered. The proportion confirmed is then calculated from the inputs in columns CS and CT.
D22: Step 6 - | E22: Complete column CU for all rows with a 1 if the scheme was costed in the FD or a 0 if the scheme was not costed
D23: Step 7 - | E23: In column CV select for all rows the price control that the WINEP adjustment will be applied to
D24: Step 8 - | E24: Enter the units into column CW and a conversion factor into column CX to convert into £m.
D26: 2) | E26: InpTime sheet : This is the sheet where all the Inputs related to dates and timelines are set up:
E27: =Time!A1 -> Time
D29: 3) | E29: InpAct sheet : This is the sheet where all the Inputs used in the model calculations are present, all the inputs flow from this sheet into the model calculations:
E30: =InpActive!A1 -> InpActive
E31: Update all Input cells as required.
E33: Recalculate the model once all the sheets are updated. Press Ctrl + Alt + F9
B37: HOW TO SAVE A PDF COPY OF ANY SHEET
D39: Step 1 - | E39: To save a sheet in PDF format, press button "Save as PDF"
D43: Step 2 - | E43: In the dialog box, "Enter sheet name", type the name of the sheet you want to save
D45: Step 3 - | E45: In the dialog box, "Save As" change the file name if required
D47: Step 4 - | E47: Press "Save" to save a Pdf copy of the sheet
B51: HOW TO STORE TRACK IN TRACK SHEET
D53: USING MACRO
E54: To store Track in the Track sheet using the macro, follow the steps below:
D56: Step 1 - | E56: Go to the Track sheet and press the "Store Track" button to save the track for a new case
E57: Store Track
D59: Step 2 - | E59: A dialog box "Enter the label for the new track column" will appear, type the new track label (for example: "version 17r"), the label will appear in row 6
D61: Step 3 - | E61: A dialog box "Enter the comment for the new track" will appear, write a brief description of the change. The description will be appear at the bottom of the track column
D63: Step 4 - | E63: Press enter, a new track column will appear before the last stored track
D65: Step 5 - | E65: Review the difference between stored cases and active case (col H) by selecting the stored case in cell H6.
D67: MANUAL METHOD
E69: To store Track in the Track sheet manually, follow the steps below:
D71: Step 1 - | E71: Select the column by pressing Ctrl + Spacebar and Copy (Ctrl + C). Then insert a new column after the last stored column by pressing Alt, I, E
D73: Step 2 - | E73: Select the newly inserted column (Ctrl + Spacebar) and delete the previously stored values from this column by pressing Delete button
D75: Step 3 - | E75: Go to active track column (H column). Select the range from H6 till 'do not delete row - range end' row and Copy (Ctrl + C)
D77: Step 4 - | E77: Paste the selected values (Alt E, S, V) in newly inserted column
D79: Step 5 - | E79: Update 'New track name' in row 6 of newly inserted column. Then select 'New track name' from the dropdown list present in H6.
D81: Step 6 - | E81: Review the difference between stored cases and active case (col H) by selecting the stored case in cell H6.
A85: End of sheet

Sheet ToC
A1: =RIGHT(CELL("filename", $A$1), LEN(CELL("filename", $A$1)) - SEARCH("]", CELL("filename", $A$1))) -> ToC
A3: GENERIC MODEL DESIGN
F5: Table of Contents
H8: DOCUMENTATION | L8: MODEL INPUTS | Q8: MODEL CALCULATIONS | V8: MODEL OUTPUTS | Z8: MODEL QA
H10: Cover | L10: WINEP_Inputs | Q10: WINEP_Schemes | V10: Annual_Outputs | Z10: Check
H11: Model cover sheet | L11: WINEP inputs from business plans | Q11: List of WINEP Amber schemes | V11: Annual profile of WINEP reconciliation | Z11: Checks
H13: User Guide | L13: Time | Q13: WINEP_Allowance | V13: F_Outputs | Z13: Track
H14: Explanation of setup and macros | L14: Dates and timelines | Q14: Calculation of allowed cost | V14: Outputs to be uploaded to Fountain | Z14: Model changes and track records
H16: ToC | L16: InpActive
H17: Table of contents | L17: All inputs to be flowed into model
H19: Style Guide
H20: Explanation of different formatting types
A25: End of sheet

Sheet Model formatting
A1: =RIGHT(CELL("filename", $A$1), LEN(CELL("filename", $A$1)) - SEARCH("]", CELL("filename", $A$1))) -> Model formatting
A4: SHEET TABS
E6: Light Yellow | G6: Input sheets
E8: No colour (default Excel tab colour) | G8: Calculation and documentation sheets
E10: Pale Blue | G10: Key output sheets
E12: Turquoise | G12: Quality control sheets
E14: Yellow | G14: To be completed, temporary, restructured, or deleted
E16: Orange | G16: To be used for internal purposes only, removed prior to publication
A18: COLOUR
B20: Font colour only
E21: Blue font | G21: Imported from another sheet
E23: Red font | G23: Exported to another sheet (except from Input sheets)
E25: Black font | G25: Within sheet link or calculation
B27: Font + shade combinations
E28: Black font + Light Yellow shade | G28: Inputs
E30: Black font + Light Grey shade on entire row | G30: Within-worksheet counter-flow
E32: Blue font + Light Grey shade on entire row | G32: Between-worksheet counter-flow
E34: Empty Cell with Light Grey shade | G34: Empty cells being deliberately referenced
B36: Other
E37: Black font + Pale Blue shade on entire row | G37: Section separator
E39: Light Turquoise shade | G39: Stored/dead/hard coded outputs
E41: Tan shade | G41: Pre-model time line actuals
E43: Yellow shade | G43: Work in progress / temporary
E45: Lime shade | G45: Values or logic to be reviewed
B47: Error checks & alerts
E48: Green shade | G48: OK
E50: Red shade | G50: Error
E52: Gold shade | G52: Alert
A54: ABBREVIATIONS
E56: WINEP | G56: Water Industry National Environment Programme
E57: £ | G57: Great Britain Pound
E58: m | G58: Million
E59: na | G59: Not available / applicable
E60: # | G60: Number
A62: LIST OF MACROS USED
E64: Store track results
G65: This macro helps in storing the results/outputs after any change is made in the model on "Track" sheet.
G66: These stored results then can be used to analyse the impact of any change made in the model.
G67: Goto macro
E69: Save as PDF
G70: This macro helps in saving any worksheet or chart in PDF format.
A72: END OF SHEET

Sheet Inputs >>

Sheet Time
A1: =RIGHT(CELL("filename", $A$1), LEN(CELL("filename", $A$1)) - SEARCH("]", CELL("filename", $A$1))) -> Time
E2: =Time!E$25 -> Model period ending | J2: =Time!J$25 -> 2019-03-31 | K2: =Time!K$25 -> 2020-03-31 | L2: =Time!L$25 -> 2021-03-31 | M2: =Time!M$25 -> 2022-03-31 | N2: =Time!N$25 -> 2023-03-31 | O2: =Time!O$25 -> 2024-03-31 | P2: =Time!P$25 -> 2025-03-31 | Q2: =Time!Q$25 -> 2026-03-31 | R2: =Time!R$25 -> 2027-03-31 | S2: =Time!S$25 -> 2028-03-31 | T2: =Time!T$25 -> 2029-03-31
E3: =Time!E$107 -> Timeline label | J3: =Time!J$107 -> Pre-Fcst | K3: =Time!K$107 -> Pre-Fcst | L3: =Time!L$107 -> Forecast | M3: =Time!M$107 -> Forecast | N3: =Time!N$107 -> Forecast | O3: =Time!O$107 -> Forecast | P3: =Time!P$107 -> Forecast | Q3: =Time!Q$107 -> Post-Fcst | R3: =Time!R$107 -> Post-Fcst | S3: =Time!S$107 -> Post-Fcst | T3: =Time!T$107 -> Post-Fcst
E4: =Time!E$130 -> Financial year ending | J4: =Time!J$130 -> 2019 | K4: =Time!K$130 -> 2020 | L4: =Time!L$130 -> 2021 | M4: =Time!M$130 -> 2022 | N4: =Time!N$130 -> 2023 | O4: =Time!O$130 -> 2024 | P4: =Time!P$130 -> 2025 | Q4: =Time!Q$130 -> 2026 | R4: =Time!R$130 -> 2027 | S4: =Time!S$130 -> 2028 | T4: =Time!T$130 -> 2029
E5: =Time!E$10 -> Model column counter | F5: Constant | G5: Unit | H5: Total | J5: =Time!J$10 -> 1 | K5: =Time!K$10 -> 2 | L5: =Time!L$10 -> 3 | M5: =Time!M$10 -> 4 | N5: =Time!N$10 -> 5 | O5: =Time!O$10 -> 6 | P5: =Time!P$10 -> 7 | Q5: =Time!Q$10 -> 8 | R5: =Time!R$10 -> 9 | S5: =Time!S$10 -> 10 | T5: =Time!T$10 -> 11
A7: MODEL PERIOD
B9: Model column counter
E10: Model column counter | G10: counter | J10: =I10 + 1 -> 1 | K10: =J10 + 1 -> 2 | L10: =K10 + 1 -> 3 | M10: =L10 + 1 -> 4 | N10: 5 | O10: 6 | P10: =O10 + 1 -> 7 | Q10: =P10 + 1 -> 8 | R10: =Q10 + 1 -> 9 | S10: =R10 + 1 -> 10 | T10: 11
E11: Model column total | F11: =MAX(J10:T10) -> 11 | G11: columns
E13: =E$10 -> Model column counter | F13: 0 | G13: counter | H13: =H$10 -> 0 | I13: 0 | J13: =J$10 -> 1 | K13: 2 | L13: 3 | M13: 4 | N13: 5 | O13: 6 | P13: 7 | Q13: 8 | R13: 9 | S13: 10 | T13: 11
E14: 1st model column flag | G14: flag | H14: =SUM(J14:T14) -> 1 | J14: =IF(J13 = 1, 1, 0) -> 1 | K14: =IF(K13 = 1, 1, 0) -> 0 | L14: 0 | M14: =IF(M13 = 1, 1, 0) -> 0 | N14: =IF(N13 = 1, 1, 0) -> 0 | O14: 0 | P14: =IF(P13 = 1, 1, 0) -> 0 | Q14: =IF(Q13 = 1, 1, 0) -> 0 | R14: =IF(R13 = 1, 1, 0) -> 0 | S14: =IF(S13 = 1, 1, 0) -> 0 | T14: 0
B16: Model period beginning
E17: =InpActive!E12 -> 1st model column start date | F17: =InpActive!F12 -> 2018-04-01 | G17: =InpActive!G12 -> date
E18: =InpActive!E$39 -> Months per model period | F18: =InpActive!F$39 -> 12 | G18: =InpActive!G$39 -> months
E19: =E$14 -> 1st model column flag | F19: 0 | G19: flag | H19: =H$14 -> 1 | I19: 0 | J19: =J$14 -> 1 | K19: 0 | L19: 0 | M19: 0 | N19: 0 | O19: 0 | P19: 0 | Q19: 0 | R19: 0 | S19: 0 | T19: 0
E20: Model period beginning | G20: date | J20: =IF(J19 = 1, $F17, DATE(YEAR(I20), MONTH(I20) + $F18, DAY(1))) -> 2018-04-01 | K20: =IF(K19 = 1, $F17, DATE(YEAR(J20), MONTH(J20) + $F18, DAY(1))) -> 2019-04-01 | L20: =IF(L19 = 1, $F17, DATE(YEAR(K20), MONTH(K20) + $F18, DAY(1))) -> 2020-04-01 | M20: =IF(M19 = 1, $F17, DATE(YEAR(L20), MONTH(L20) + $F18, DAY(1))) -> 2021-04-01 | N20: =IF(N19 = 1, $F17, DATE(YEAR(M20), MONTH(M20) + $F18, DAY(1))) -> 2022-04-01 | O20: 2023-04-01 | P20: =IF(P19 = 1, $F17, DATE(YEAR(O20), MONTH(O20) + $F18, DAY(1))) -> 2024-04-01 | Q20: =IF(Q19 = 1, $F17, DATE(YEAR(P20), MONTH(P20) + $F18, DAY(1))) -> 2025-04-01 | R20: =IF(R19 = 1, $F17, DATE(YEAR(Q20), MONTH(Q20) + $F18, DAY(1))) -> 2026-04-01 | S20: =IF(S19 = 1, $F17, DATE(YEAR(R20), MONTH(R20) + $F18, DAY(1))) -> 2027-04-01 | T20: 2028-04-01
B22: Model period ending
E23: =InpActive!E$39 -> Months per model period | F23: =InpActive!F$39 -> 12 | G23: =InpActive!G$39 -> months
E24: =E$20 -> Model period beginning | F24: 00:00:00 | G24: date | H24: 00:00:00 | I24: 00:00:00 | J24: 2018-04-01 | K24: 2019-04-01 | L24: 2020-04-01 | M24: 2021-04-01 | N24: 2022-04-01 | O24: 2023-04-01 | P24: 2024-04-01 | Q24: 2025-04-01 | R24: 2026-04-01 | S24: 2027-04-01 | T24: 2028-04-01
E25: Model period ending | G25: date | J25: =DATE(YEAR(J24), MONTH(J24) + $F23, DAY(J24) - 1) -> 2019-03-31 | K25: =DATE(YEAR(K24), MONTH(K24) + $F23, DAY(K24) - 1) -> 2020-03-31 | L25: 2021-03-31 | M25: 2022-03-31 | N25: 2023-03-31 | O25: 2024-03-31 | P25: =DATE(YEAR(P24), MONTH(P24) + $F23, DAY(P24) - 1) -> 2025-03-31 | Q25: =DATE(YEAR(Q24), MONTH(Q24) + $F23, DAY(Q24) - 1) -> 2026-03-31 | R25: =DATE(YEAR(R24), MONTH(R24) + $F23, DAY(R24) - 1) -> 2027-03-31 | S25: =DATE(YEAR(S24), MONTH(S24) + $F23, DAY(S24) - 1) -> 2028-03-31 | T25: 2029-03-31
E27: =E$25 -> Model period ending | F27: 00:00:00 | G27: date | H27: 00:00:00 | I27: 00:00:00 | J27: 2019-03-31 | K27: 2020-03-31 | L27: 2021-03-31 | M27: 2022-03-31 | N27: 2023-03-31 | O27: 2024-03-31 | P27: 2025-03-31 | Q27: 2026-03-31 | R27: 2027-03-31 | S27: 2028-03-31 | T27: 2029-03-31
E28: =E$20 -> Model period beginning | F28: 00:00:00 | G28: date | H28: 00:00:00 | I28: 00:00:00 | J28: 2018-04-01 | K28: 2019-04-01 | L28: 2020-04-01 | M28: 2021-04-01 | N28: 2022-04-01 | O28: 2023-04-01 | P28: 2024-04-01 | Q28: 2025-04-01 | R28: 2026-04-01 | S28: 2027-04-01 | T28: 2028-04-01
E29: Days in a year | G29: days | J29: =J27 - J28 + 1 -> 365 | K29: =K27 - K28 + 1 -> 366 | L29: 365 | M29: 365 | N29: 365 | O29: 366 | P29: 365 | Q29: 365 | R29: 365 | S29: =S27 - S28 + 1 -> 366 | T29: 365
A32: FORECAST PERIOD
B34: Forecast start period flag
E35: =InpActive!E$25 -> Forecast start date | F35: =InpActive!F$25 -> 2020-04-01 | G35: =InpActive!G$25 -> date
E36: =E$20 -> Model period beginning | F36: 00:00:00 | G36: date | H36: 00:00:00 | I36: 00:00:00 | J36: 2018-04-01 | K36: 2019-04-01 | L36: 2020-04-01 | M36: 2021-04-01 | N36: 2022-04-01 | O36: 2023-04-01 | P36: 2024-04-01 | Q36: 2025-04-01 | R36: 2026-04-01 | S36: 2027-04-01 | T36: 2028-04-01
E37: =E$25 -> Model period ending | F37: 00:00:00 | G37: date | H37: 00:00:00 | I37: 00:00:00 | J37: 2019-03-31 | K37: 2020-03-31 | L37: 2021-03-31 | M37: 2022-03-31 | N37: 2023-03-31 | O37: 2024-03-31 | P37: 2025-03-31 | Q37: 2026-03-31 | R37: 2027-03-31 | S37: 2028-03-31 | T37: 2029-03-31
E38: Forecast start period flag | G38: flag | H38: =SUM(J38:T38) -> 1 | J38: =IF(AND($F35 >= J36, $F35 <= J37), 1, 0) -> 0 | K38: =IF(AND($F35 >= K36, $F35 <= K37), 1, 0) -> 0 | L38: 1 | M38: 0 | N38: 0 | O38: 0 | P38: =IF(AND($F35 >= P36, $F35 <= P37), 1, 0) -> 0 | Q38: =IF(AND($F35 >= Q36, $F35 <= Q37), 1, 0) -> 0 | R38: =IF(AND($F35 >= R36, $F35 <= R37), 1, 0) -> 0 | S38: =IF(AND($F35 >= S36, $F35 <= S37), 1, 0) -> 0 | T38: 0
B40: Forecast end period flag
E41: =InpActive!E$25 -> Forecast start date | F41: =InpActive!F$25 -> 2020-04-01 | G41: =InpActive!G$25 -> date
E42: =InpActive!E26 -> Forecast duration | F42: =InpActive!F26 -> 5 | G42: =InpActive!G26 -> years
E43: Forecast end date | F43: =DATE(YEAR(F41) + F42, MONTH(F41), DAY(F41) - 1) -> 2025-03-31 | G43: date
E45: =E$43 -> Forecast end date | F45: =F$43 -> 2025-03-31 | G45: =G$43 -> date
E46: =E$20 -> Model period beginning | F46: 00:00:00 | G46: date | H46: 00:00:00 | I46: 00:00:00 | J46: 2018-04-01 | K46: 2019-04-01 | L46: 2020-04-01 | M46: 2021-04-01 | N46: 2022-04-01 | O46: 2023-04-01 | P46: 2024-04-01 | Q46: 2025-04-01 | R46: 2026-04-01 | S46: 2027-04-01 | T46: 2028-04-01
E47: =E$25 -> Model period ending | F47: 00:00:00 | G47: date | H47: 00:00:00 | I47: 00:00:00 | J47: 2019-03-31 | K47: 2020-03-31 | L47: 2021-03-31 | M47: 2022-03-31 | N47: 2023-03-31 | O47: 2024-03-31 | P47: 2025-03-31 | Q47: 2026-03-31 | R47: 2027-03-31 | S47: 2028-03-31 | T47: 2029-03-31
E48: Forecast end period flag | G48: flag | H48: =SUM(J48:T48) -> 1 | J48: =IF(AND($F45 >= J46, $F45 <= J47), 1, 0) -> 0 | K48: =IF(AND($F45 >= K46, $F45 <= K47), 1, 0) -> 0 | L48: =IF(AND($F45 >= L46, $F45 <= L47), 1, 0) -> 0 | M48: =IF(AND($F45 >= M46, $F45 <= M47), 1, 0) -> 0 | N48: 0 | O48: 0 | P48: 1 | Q48: 0 | R48: 0 | S48: =IF(AND($F45 >= S46, $F45 <= S47), 1, 0) -> 0 | T48: 0
B50: Forecast period flag
E51: =E$38 -> Forecast start period flag | F51: =F$38 -> 0 | G51: flag | H51: =H$38 -> 1 | I51: 0 | J51: 0 | K51: 0 | L51: 1 | M51: 0 | N51: 0 | O51: 0 | P51: 0 | Q51: 0 | R51: 0 | S51: 0 | T51: 0
E52: =E$48 -> Forecast end period flag | F52: =F$48 -> 0 | G52: flag | H52: =H$48 -> 1 | I52: 0 | J52: 0 | K52: 0 | L52: 0 | M52: 0 | N52: 0 | O52: 0 | P52: 1 | Q52: 0 | R52: 0 | S52: 0 | T52: 0
E53: Forecast period flag | G53: flag | H53: =SUM(J53:T53) -> 5 | J53: =J51 + I53 - I52 -> 0 | K53: =K51 + J53 - J52 -> 0 | L53: =L51 + K53 - K52 -> 1 | M53: =M51 + L53 - L52 -> 1 | N53: 1 | O53: 1 | P53: =P51 + O53 - O52 -> 1 | Q53: =Q51 + P53 - P52 -> 0 | R53: =R51 + Q53 - Q52 -> 0 | S53: =S51 + R53 - R52 -> 0 | T53: 0
E54: Total number of forecast periods | F54: =SUM(J53:R53) -> 5 | G54: periods
B56: Forecast period counter
E57: =E38 -> Forecast start period flag | F57: =F38 -> 0 | G57: flag | H57: 1 | I57: 0 | J57: 0 | K57: =K38 -> 0 | L57: 1 | M57: 0 | N57: 0 | O57: 0 | P57: 0 | Q57: 0 | R57: 0 | S57: 0 | T57: 0
E58: =E53 -> Forecast period flag | F58: =F53 -> 0 | G58: flag | H58: 5 | I58: 0 | J58: 0 | K58: =K53 -> 0 | L58: 1 | M58: 1 | N58: 1 | O58: 1 | P58: 1 | Q58: 0 | R58: 0 | S58: 0 | T58: 0
E59: =E48 -> Forecast end period flag | F59: =F48 -> 0 | G59: flag | H59: 1 | I59: 0 | J59: =J48 -> 0 | K59: =K48 -> 0 | L59: =L48 -> 0 | M59: 0 | N59: 0 | O59: 0 | P59: 1 | Q59: 0 | R59: 0 | S59: 0 | T59: 0
E60: Forecast period counter | G60: counter | J60: =IF(J57 = 1, 1, I60 + J58 - I59) * J58 -> 0 | K60: =IF(K57 = 1, 1, J60 + K58 - J59) * K58 -> 0 | L60: =IF(L57 = 1, 1, K60 + L58 - K59) * L58 -> 1 | M60: =IF(M57 = 1, 1, L60 + M58 - L59) * M58 -> 2 | N60: =IF(N57 = 1, 1, M60 + N58 - M59) * N58 -> 3 | O60: 4 | P60: 5 | Q60: 0 | R60: 0 | S60: 0 | T60: 0
B62: Pre-forecast period flag
E63: =E$14 -> 1st model column flag | F63: =F$14 -> 0 | G63: flag | H63: 1 | I63: 0 | J63: 1 | K63: 0 | L63: 0 | M63: 0 | N63: 0 | O63: 0 | P63: 0 | Q63: 0 | R63: 0 | S63: 0 | T63: 0
E64: =E$38 -> Forecast start period flag | F64: =F$38 -> 0 | G64: flag | H64: 1 | I64: 0 | J64: 0 | K64: 0 | L64: 1 | M64: 0 | N64: 0 | O64: 0 | P64: 0 | Q64: 0 | R64: 0 | S64: 0 | T64: 0
E65: Pre-forecast period flag | G65: flag | H65: =SUM(J65:T65) -> 2 | J65: =J63 + I65 - J64 -> 1 | K65: =K63 + J65 - K64 -> 1 | L65: =L63 + K65 - L64 -> 0 | M65: =M63 + L65 - M64 -> 0 | N65: 0 | O65: 0 | P65: =P63 + O65 - P64 -> 0 | Q65: =Q63 + P65 - Q64 -> 0 | R65: =R63 + Q65 - R64 -> 0 | S65: =S63 + R65 - S64 -> 0 | T65: 0
E66: Pre-forecast period flag - total | F66: =SUM(J65:T65) -> 2 | G66: periods
E68: =E$38 -> Forecast start period flag | F68: =F$38 -> 0 | G68: flag | H68: 1 | I68: 0 | J68: =J$38 -> 0 | K68: 0 | L68: 1 | M68: 0 | N68: 0 | O68: 0 | P68: 0 | Q68: 0 | R68: 0 | S68: 0 | T68: 0
E69: Last pre-forecast period flag | G69: flag | H69: =SUM(J69:T69) ->  | J69: =K68 -> 0 | K69: =L68 -> 1 | L69: =M68 -> 0 | M69: =N68 -> 0 | N69: 0 | O69: 0 | P69: =Q68 -> 0 | Q69: =R68 -> 0 | R69: =S68 -> 0 | S69: =T68 -> 0 | T69: =#REF! -> 
B71: First post-forecast period flag
E72: =E$48 -> Forecast end period flag | F72: =F$48 -> 0 | G72: flag | H72: 1 | I72: 0 | J72: =J$48 -> 0 | K72: 0 | L72: 0 | M72: 0 | N72: 0 | O72: 0 | P72: 1 | Q72: 0 | R72: 0 | S72: 0 | T72: 0
E73: First post-forecast period flag | G73: flag | H73: =SUM(J73:T73) -> 1 | J73: =I72 -> 0 | K73: =J72 -> 0 | L73: =K72 -> 0 | M73: =L72 -> 0 | N73: 0 | O73: 0 | P73: =O72 -> 0 | Q73: =P72 -> 1 | R73: =Q72 -> 0 | S73: =R72 -> 0 | T73: 0
B75: Post-forecast period flag
E76: =E$73 -> First post-forecast period flag | F76: 0 | G76: flag | H76: 1 | I76: 0 | J76: 0 | K76: 0 | L76: 0 | M76: 0 | N76: 0 | O76: 0 | P76: 0 | Q76: 1 | R76: 0 | S76: 0 | T76: 0
E77: Post-forecast period flag | G77: flag | H77: =SUM(J77:T77) -> 4 | J77: =J76 + I77 -> 0 | K77: =K76 + J77 -> 0 | L77: =L76 + K77 -> 0 | M77: =M76 + L77 -> 0 | N77: 0 | O77: 0 | P77: =P76 + O77 -> 0 | Q77: =Q76 + P77 -> 1 | R77: =R76 + Q77 -> 1 | S77: =S76 + R77 -> 1 | T77: 1
E78: Post-forecast period - total | F78: =SUM(J77:T77) -> 4 | G78: periods
B80: Model period flag
E81: =E$53 -> Forecast period flag | F81: =F$53 -> 0 | G81: flag | H81: 5 | I81: 0 | J81: 0 | K81: 0 | L81: 1 | M81: 1 | N81: 1 | O81: 1 | P81: 1 | Q81: 0 | R81: 0 | S81: 0 | T81: 0
E82: =E$65 -> Pre-forecast period flag | F82: =F$65 -> 0 | G82: flag | H82: 2 | I82: 0 | J82: 1 | K82: 1 | L82: 0 | M82: 0 | N82: 0 | O82: 0 | P82: 0 | Q82: 0 | R82: 0 | S82: 0 | T82: 0
E83: Model period flag | G83: flag | H83: =SUM(J83:T83) -> 7 | J83: =MAX(J81:J82) -> 1 | K83: =MAX(K81:K82) -> 1 | L83: 1 | M83: 1 | N83: 1 | O83: 1 | P83: 1 | Q83: 0 | R83: 0 | S83: =MAX(S81:S82) -> 0 | T83: 0
B85: Forecast year
E86: =E$130 -> Financial year ending | F86: =F$130 -> 0 | G86: year # | H86: 0 | I86: 0 | J86: 2019 | K86: 2020 | L86: 2021 | M86: 2022 | N86: 2023 | O86: 2024 | P86: 2025 | Q86: 2026 | R86: 2027 | S86: 2028 | T86: 2029
E87: =E$38 -> Forecast start period flag | F87: =F$38 -> 0 | G87: flag | H87: 1 | I87: 0 | J87: 0 | K87: 0 | L87: 1 | M87: 0 | N87: 0 | O87: 0 | P87: 0 | Q87: 0 | R87: 0 | S87: 0 | T87: 0
E88: Forecast year 1 | F88: =SUMPRODUCT(J87:T87, J86:T86) -> 2021 | G88: year #
B90: Forecast year
E91: =InpActive!E$29 -> Forecast period reconcilation is profiled from | F91: =InpActive!F$29 -> 3 | G91: =InpActive!G$29 -> year
E92: =E60 -> Forecast period counter | F92: 0 | G92: counter | H92: 0 | I92: 0 | J92: 0 | K92: 0 | L92: 1 | M92: 2 | N92: 3 | O92: 4 | P92: 5 | Q92: 0 | R92: 0 | S92: 0 | T92: 0
E93: Start of adjustment profiling flag | G93: counter | H93: =SUM(J93:T93) -> 3 | J93: =IF(J92 >= $F91, 1, 0) -> 0 | K93: =IF(K92 >= $F91, 1, 0) -> 0 | L93: 0 | M93: 0 | N93: 1 | O93: 1 | P93: 1 | Q93: 0 | R93: 0 | S93: 0 | T93: 0
A95: MODEL TIMELINE
B97: Timeline label
E98: =E$14 -> 1st model column flag | F98: 0 | G98: flag | H98: 1 | I98: 0 | J98: 1 | K98: 0 | L98: 0 | M98: 0 | N98: 0 | O98: 0 | P98: 0 | Q98: 0 | R98: 0 | S98: 0 | T98: 0
E99: =E$38 -> Forecast start period flag | F99: =F$38 -> 0 | G99: flag | H99: 1 | I99: 0 | J99: 0 | K99: 0 | L99: 1 | M99: 0 | N99: 0 | O99: 0 | P99: 0 | Q99: 0 | R99: 0 | S99: 0 | T99: 0
E100: =E$73 -> First post-forecast period flag | F100: 0 | G100: flag | H100: 1 | I100: 0 | J100: 0 | K100: 0 | L100: 0 | M100: 0 | N100: 0 | O100: 0 | P100: 0 | Q100: 1 | R100: 0 | S100: 0 | T100: 0
E101: Timeline label counter | G101: counter | J101: =I101 + SUM(J98:J100) -> 1 | K101: =J101 + SUM(K98:K100) -> 1 | L101: =K101 + SUM(L98:L100) -> 2 | M101: =L101 + SUM(M98:M100) -> 2 | N101: 2 | O101: 2 | P101: =O101 + SUM(P98:P100) -> 2 | Q101: =P101 + SUM(Q98:Q100) -> 3 | R101: =Q101 + SUM(R98:R100) -> 3 | S101: =R101 + SUM(S98:S100) -> 3 | T101: 3
E103: =InpActive!E19 -> Pre - forecast period | F103: =InpActive!F19 -> Pre-Fcst | G103: =InpActive!G19 -> label
E104: =InpActive!E20 -> Forecast period | F104: =InpActive!F20 -> Forecast | G104: =InpActive!G20 -> label
E105: =InpActive!E21 -> Post - forecast period | F105: =InpActive!F21 -> Post-Fcst | G105: =InpActive!G21 -> label
E106: =E$101 -> Timeline label counter | F106: 0 | G106: counter | H106: 0 | I106: 0 | J106: 1 | K106: 1 | L106: 2 | M106: 2 | N106: 2 | O106: 2 | P106: 2 | Q106: 3 | R106: 3 | S106: 3 | T106: 3
E107: Timeline label | G107: label | J107: =INDEX($F103:$F105, J106) -> Pre-Fcst | K107: =INDEX($F103:$F105, K106) -> Pre-Fcst | L107: =INDEX($F103:$F105, L106) -> Forecast | M107: =INDEX($F103:$F105, M106) -> Forecast | N107: =INDEX($F103:$F105, N106) -> Forecast | O107: =INDEX($F103:$F105, O106) -> Forecast | P107: =INDEX($F103:$F105, P106) -> Forecast | Q107: =INDEX($F103:$F105, Q106) -> Post-Fcst | R107: =INDEX($F103:$F105, R106) -> Post-Fcst | S107: =INDEX($F103:$F105, S106) -> Post-Fcst | T107: Post-Fcst
B109: Modelling period check
E110: =E$65 -> Pre-forecast period flag | F110: =F$65 -> 0 | G110: flag | H110: 2 | I110: 0 | J110: 1 | K110: 1 | L110: 0 | M110: 0 | N110: 0 | O110: 0 | P110: 0 | Q110: 0 | R110: 0 | S110: 0 | T110: 0
E111: =E$53 -> Forecast period flag | F111: =F$53 -> 0 | G111: flag | H111: 5 | I111: 0 | J111: 0 | K111: 0 | L111: 1 | M111: 1 | N111: 1 | O111: 1 | P111: 1 | Q111: 0 | R111: 0 | S111: 0 | T111: 0
E112: =E$77 -> Post-forecast period flag | F112: 0 | G112: flag | H112: 4 | I112: 0 | J112: 0 | K112: 0 | L112: 0 | M112: 0 | N112: 0 | O112: 0 | P112: 0 | Q112: 1 | R112: 1 | S112: 1 | T112: 1
E113: No. of overlapping in flags | G113: # | H113: =SUM(J113:T113) -> 0 | J113: =MAX(0, SUM(J110:J112) - 1) -> 0 | K113: =MAX(0, SUM(K110:K112) - 1) -> 0 | L113: =MAX(0, SUM(L110:L112) - 1) -> 0 | M113: =MAX(0, SUM(M110:M112) - 1) -> 0 | N113: =MAX(0, SUM(N110:N112) - 1) -> 0 | O113: 0 | P113: =MAX(0, SUM(P110:P112) - 1) -> 0 | Q113: =MAX(0, SUM(Q110:Q112) - 1) -> 0 | R113: =MAX(0, SUM(R110:R112) - 1) -> 0 | S113: =MAX(0, SUM(S110:S112) - 1) -> 0 | T113: 0
E114: Overlapping in periods - total | F114: =SUM(J113:T113) -> 0 | G114: periods
E116: =E$11 -> Model column total | F116: =F$11 -> 11 | G116: =G$11 -> columns
E117: =E$114 -> Overlapping in periods - total | F117: =F$114 -> 0 | G117: =G$114 -> periods
E118: =E$66 -> Pre-forecast period flag - total | F118: =F$66 -> 2 | G118: =G$66 -> periods
E119: =E$54 -> Total number of forecast periods | F119: =F$54 -> 5 | G119: =G$54 -> periods
E120: =E$78 -> Post-forecast period - total | F120: =F$78 -> 4 | G120: =G$78 -> periods
E121: Modelling period check | F121: =IF(SUM(F116:F117) - SUM(F118:F120) <> 0, 1, 0) -> 0 | G121: check
A124: FINANCIAL YEAR
E126: =InpActive!E15 -> First modelling column financial year # | F126: =InpActive!F15 -> 2019 | G126: =InpActive!G15 -> year #
E127: =InpActive!E16 -> Financial year end month number # | F127: =InpActive!F16 -> 3 | G127: =InpActive!G16 -> month #
E128: =E$25 -> Model period ending | F128: 00:00:00 | G128: date | H128: 00:00:00 | I128: 00:00:00 | J128: 2019-03-31 | K128: 2020-03-31 | L128: 2021-03-31 | M128: 2022-03-31 | N128: 2023-03-31 | O128: 2024-03-31 | P128: 2025-03-31 | Q128: 2026-03-31 | R128: 2027-03-31 | S128: 2028-03-31 | T128: 2029-03-31
E129: =E$14 -> 1st model column flag | F129: 0 | G129: flag | H129: 1 | I129: 0 | J129: 1 | K129: 0 | L129: 0 | M129: 0 | N129: 0 | O129: 0 | P129: 0 | Q129: 0 | R129: 0 | S129: 0 | T129: 0
E130: Financial year ending | G130: year # | J130: =IF(J129 = 1, $F126, IF(J128 > (DATE(I130, $F127 + 1, 1) - 1), I130 + 1, I130)) -> 2019 | K130: =IF(K129 = 1, $F126, IF(K128 > (DATE(J130, $F127 + 1, 1) - 1), J130 + 1, J130)) -> 2020 | L130: =IF(L129 = 1, $F126, IF(L128 > (DATE(K130, $F127 + 1, 1) - 1), K130 + 1, K130)) -> 2021 | M130: =IF(M129 = 1, $F126, IF(M128 > (DATE(L130, $F127 + 1, 1) - 1), L130 + 1, L130)) -> 2022 | N130: 2023 | O130: 2024 | P130: =IF(P129 = 1, $F126, IF(P128 > (DATE(O130, $F127 + 1, 1) - 1), O130 + 1, O130)) -> 2025 | Q130: =IF(Q129 = 1, $F126, IF(Q128 > (DATE(P130, $F127 + 1, 1) - 1), P130 + 1, P130)) -> 2026 | R130: =IF(R129 = 1, $F126, IF(R128 > (DATE(Q130, $F127 + 1, 1) - 1), Q130 + 1, Q130)) -> 2027 | S130: =IF(S129 = 1, $F126, IF(S128 > (DATE(R130, $F127 + 1, 1) - 1), R130 + 1, R130)) -> 2028 | T130: 2029
A133: End of sheet

Sheet WINEP_Inputs
A1: WINEP3 Update March 2019 | H1: National Full data set
AI2: FBG Detail | CR2: The lines below are examples with some dummy inputs.
A3: VERSION 1 | AI3: SSSI/N2K/Ramsar | AN3: Eels | AP3: NERC Driver | AX3: INNS | AZ3: MCZ | BA3: Water Quality Detail | BX3: Water Resource Detail | CH3: Environmental Outcome | CR3: WINEP model inputs
A4: WINEPID | B4: Change Log Winep 2 to 3 | C4: NEW Column. Has an alteration to this measure been made? If Y then please refer to alterations log. | D4: Application in determination by NPS? | E4: Has a permit been issued? | F4: Function | G4: RBD | H4: Area | I4: Water Company | J4: Unique ID * (completed on company collation) | K4: Scheme Name/Name of Investigation/Site Name/Licence name | L4: Name of Waterbody | M4: Waterbody ID | N4: Water Body Type(s) | O4: WFD Operational Catchment | P4: Blank Column | Q4: Blank Column | R4: Blank Column | S4: Driver Code (Primary) | T4: Further Driver Code Information (related to the primary driver if applicable) | U4: Driver Code (Secondary) | V4: Further Driver Code Information (related to the secondary driver if applicable) | W4: Driver Code (Tertiary) | X4: Further Driver Code Information (related to the tertiary driver if applicable) | Y4: Measure Type | Z4: Completion Date (DD/MM/YY) | AA4: Level of Certainty? (P= Purple, R=Red, A=Amber, G=Green | AB4: Abstraction Licence/ Permit, Obstruction ID or No Obstruction ID | AC4: Eastings | AD4: Northings | AE4: Investigation Type | AF4: Investigation Scope | AG4: Implementation Scope | AH4: Groundwater Measures Information | AI4: Name of SSSI (if applicable) | AJ4: Name of N2K/Ramsar site (if applicable) | AK4: SSSI/N2K/Ramsar Unit ID | AL4: SSSI/N2K/Ramsar Area of Unit (Hectares) | AM4: Justification for Action/Investigation | AN4: Eel Priority Status | AO4: Eel Improvement Type | AP4: Primary Type of Priority Habitat Created or Restored/Improved | AQ4: Secondary Type of Priority Habitat Created or Restored/Improved | AR4: Other Priority Habitat Created or Restored/Improved | AS4: Type of Action Taken | AT4: Units Recorded (Hectare or km) | AU4: Number of Hectares or Kms | AV4: Name of Priority Species | AW4: Name of High Risk of Extinction Species | AX4: INNS Control Measure | AY4: INNS Species (if applicable) | AZ4: Name of MCZ | BA4: Name of Bathing Water (where applicable) | BB4: Name of Shellfish Water (where applicable) | BC4: Chemical of Interest (for chemicals measures only) | BD4: Groundwater Chemicals | BE4: Drinking Water Inspectorate - Undertaking or Notice Y/N | BF4: DrWPA Substances at Risk (if applicable) | BG4: Safeguard Zone Name (if applicable) | BH4: Safeguard Zone ID (if applicable) | BI4: Population Equivalent for STWs | BJ4: Current Permit Limit (mg/l) | BK4: Proposed Permit Limit (mg/l) | BL4: Proposed Iron or Aluminium Limits (for Phosphorus measures only) | BM4: Current DWF (m3/d) | BN4: Proposed DWF (m3/d) (if applicable) | BO4: Proposed Permit Limit Other | BP4: Catchment Measure Actions | BQ4: Unsustainable Abstraction System Code | BR4: Linked Groundwater Body Name | BS4: Linked Groundwater Body ID | BT4: Licence Category | BU4: Water Resource Zone (WRZ) | BV4: WR HMWB Flag (X) | BW4: Scheme Relates to Following Missing Mitigation Measures (HMWB only) | BX4: Annual Licence Volume (Ml/a) | BY4: Daily Licence Volume (Ml/d) | BZ4: Aggregate Licence (x) | CA4: Sustainability Change (to Annual Licence Volume) Ml/a | CB4: Sustainability Change (to Daily Licence Volume) Ml/d | CC4: Sustainability Change (to HoF Condition) Ml/d | CD4: *NEW* Water returned to the environment (Reduction in actual abstraction) ML/d | CE4: New Annual Licence Volume (Ml/a) | CF4: New Daily Licence Volume (Ml/d) | CG4: New HoF Condition (Ml/d) | CH4: Quantitative Km River Length Improved or Protected | CI4: Quantitative Area (km2) Improved or Protected | CJ4: Volume (Ml/yr) Drinking Water Protected | CK4: Hectares of Designated Site (HD/RAMSAR/ SSSI) Restored or Improved | CL4: *NEW* INNS ,No Det outcome - Km2 of land with reduced risk of INNS | CM4: Delivers Additional FCERM Benefits (Y/N) | CN4: Delivers on Salmon 5-Point Action Plan | CO4: Additional Comments | CP4: CPS Reference | CQ4: Flow Categorisation 1= PR19 Synergy 2= WFD failure 3= Neither | CR4: Allowed totex unit rate | CS4: Quantity proposed in PR19 FD | CT4: Quantity Delivered | CU4: 1 = In PR19, funded 0 = In PR19, not funded | CV4: Price Control | CW4: Unit | CX4: Unit Conversion to £m
A5: EX00001 | B5: EXAMPLE | F5: WR | G5: Humber | H5: Yorkshire | I5: Sample Water Services Ltd | J5: XXW000001 | K5: Sample Fish Passage | L5: Sample waterbody | M5: GB104027057490 | N5: River | O5: Sample | S5: WFD_IMP_FISH | Y5: Fish Passage | Z5: dd/mm/2024 | AA5: Amber | CH5: 10 | CR5: 30000 | CS5: =CH5 -> 10 | CT5: 5 | CU5: 1 | CV5: WR | CW5: £ per km LORI | CX5: 1e-06
A6: EX00002 | B6: EXAMPLE | F6: FBG | G6: Humber | H6: Yorkshire | I6: Sample Water Services Ltd | J6: XXW000002 | K6: Investigation - reservoirs | L6: Sample | M6: Water Company Scale | O6: Sample | S6: EE_INV | Y6: Investigation | Z6: dd/mm/2024 | AA6: Amber | CR6: 15000 | CS6: 20 | CT6: 17 | CU6: 1 | CV6: WR | CW6: £ per reservoir | CX6: 1e-06
A7: EX00003 | B7: EXAMPLE | F7: WQ | G7: Humber | H7: Yorkshire | I7: Sample Water Services Ltd | J7: XXW000003 | K7: Sample STW1 | L7: Sample waterbody | M7: GB104027057452 | N7: River | O7: Sample | S7: WFD_IMPg | T7: Phosphorus | Y7: Continuous Discharge | Z7: dd/mm/2024 | AA7: Amber | CH7: 6 | CR7: 3.4 | CS7: 1 | CT7: 1 | CU7: 0 | CV7: WWN | CW7: £m | CX7: 1
A8: EX00004 | B8: EXAMPLE | F8: WQ | G8: Thames | H8: Thames | I8: Sample Water Services Ltd | J8: XXW000004 | K8: Sample STW2 | L8: Sample waterbody | M8: GB106039017900 | N8: River | O8: Sample | S8: WFD_IMPg | T8: Phosphorus | Y8: Continuous Discharge | Z8: dd/mm/2024 | AA8: Amber | BI8: 15800 | BK8: 0.3 | CH8: 2 | CR8: 412 | CS8: =BI8 -> 15800 | CT8: =CS8 -> 15800 | CU8: 1 | CV8: WWN | CW8: £ per p.e. | CX8: 1e-06
A9: EX00005 | B9: EXAMPLE | F9: WQ | G9: Thames | H9: Thames | I9: Sample Water Services Ltd | J9: XXW000005 | K9: Sample STW3 | L9: Sample waterbody | M9: GB106038040110 | N9: River | O9: Sample | S9: WFD_IMPg | T9: Phosphorus | Y9: Continuous Discharge | Z9: dd/mm/2024 | AA9: Amber | BI9: 800 | BK9: 0.4 mg/l | CH9: 27.588 | CR9: 1937 | CS9: =BI9 -> 800 | CT9: =CS9 -> 800 | CU9: 1 | CV9: WWN | CW9: £ per p.e. | CX9: 1e-06
A10: EX00006 | B10: EXAMPLE | F10: WQ | G10: Thames | H10: Thames | I10: Sample Water Services Ltd | J10: XXW000006 | K10: Sample STW4 | L10: Sample waterbody | M10: GB106038040140 | N10: River | O10: Sample | S10: WFD_IMP_CHEM | Y10: Continuous Discharge | Z10: dd/mm/2024 | AA10: Amber | CH10: 9.6 | CR10: 2.459 | CS10: 1 | CT10: 1 | CU10: 1 | CV10: WWN | CW10: £m | CX10: 1
A11: NEP | CY11: NRW, NEP
A12: NEP | CY12: NRW, NEP

Sheet InpActive
A1: =RIGHT(CELL("filename", $A$1), LEN(CELL("filename", $A$1)) - SEARCH("]", CELL("filename", $A$1))) -> InpActive
E2: =Time!E25 -> Model period ending | F2: =Check!F2 -> 0 | G2: Checks | J2: =Time!J$25 -> 2019-03-31 | K2: =Time!K$25 -> 2020-03-31 | L2: =Time!L$25 -> 2021-03-31 | M2: =Time!M$25 -> 2022-03-31 | N2: =Time!N$25 -> 2023-03-31 | O2: =Time!O$25 -> 2024-03-31 | P2: =Time!P$25 -> 2025-03-31 | Q2: =Time!Q$25 -> 2026-03-31 | R2: =Time!R$25 -> 2027-03-31 | S2: =Time!S$25 -> 2028-03-31
E3: =Time!E107 -> Timeline label | F3: =Check!F3 -> 5 | G3: Track chgs | J3: =Time!J$107 -> Pre-Fcst | K3: =Time!K$107 -> Pre-Fcst | L3: =Time!L$107 -> Forecast | M3: =Time!M$107 -> Forecast | N3: =Time!N$107 -> Forecast | O3: =Time!O$107 -> Forecast | P3: =Time!P$107 -> Forecast | Q3: =Time!Q$107 -> Post-Fcst | R3: =Time!R$107 -> Post-Fcst | S3: =Time!S$107 -> Post-Fcst
E4: =Time!E130 -> Financial year ending | J4: =Time!J$130 -> 2019 | K4: =Time!K$130 -> 2020 | L4: =Time!L$130 -> 2021 | M4: =Time!M$130 -> 2022 | N4: =Time!N$130 -> 2023 | O4: =Time!O$130 -> 2024 | P4: =Time!P$130 -> 2025 | Q4: =Time!Q$130 -> 2026 | R4: =Time!R$130 -> 2027 | S4: =Time!S$130 -> 2028
E5: =Time!E10 -> Model column counter | F5: Constant | G5: Unit | H5: Total | J5: =Time!J$10 -> 1 | K5: =Time!K$10 -> 2 | L5: =Time!L$10 -> 3 | M5: =Time!M$10 -> 4 | N5: =Time!N$10 -> 5 | O5: =Time!O$10 -> 6 | P5: =Time!P$10 -> 7 | Q5: =Time!Q$10 -> 8 | R5: =Time!R$10 -> 9 | S5: =Time!S$10 -> 10
A7: A: TIME
B9: Timeline setup
C11: Timeline start dates
E12: 1st model column start date | F12: 2018-04-01 | G12: date | H12: Date should be the first date of the financial year
C14: Financial year inputs
E15: First modelling column financial year # | F15: 2019 | G15: year # | H15: Financial model start year
E16: Financial year end month number # | F16: 3 | G16: month # | H16: Month of financial year end for financial model
C18: Timeline labels
E19: Pre - forecast period | F19: Pre-Fcst | G19: label
E20: Forecast period | F20: Forecast | G20: label
E21: Post - forecast period | F21: Post-Fcst | G21: label
B23: Project dates
E25: Forecast start date | F25: 2020-04-01 | G25: date
E26: Forecast duration | F26: 5 | G26: years
E27: Forecast duration (text) | F27: 2020-25 | G27: years # | H27: For Info only
E29: Forecast period reconcilation is profiled from | F29: 3 | G29: year
A31: B: FINANCING INPUTS
E33: Financing cost index | G33: Index | L33: 4 | M33: 3 | N33: 2 | O33: 1 | P33: 0
E35: Financing Cost | F35: 0.0292 | G35: %
A37: C: NON CHANGEABLE MODEL TECHNICAL INPUTS
E39: Months per model period | F39: 12 | G39: months
E41: Track Tolerance Level | F41: 0.001 | G41: tolerance
E42: Check Tolerance Level | F42: 1e-07 | G42: tolerance
E44: Thousands in a million | F44: 1000 | G44: thousands
E45: Units in a million | F45: 1000000 | G45: unit
E46: Unit conversion to percentage | F46: 100 | G46: unit
A48: End of sheet

Sheet Calcs >>

Sheet WINEP_Schemes
A1: =RIGHT(CELL("filename", $A$1), LEN(CELL("filename", $A$1)) - SEARCH("]", CELL("filename", $A$1))) -> WINEP_Schemes
F2: =Check!F2 -> 0 | G2: Checks
F3: =Check!F3 -> 5 | G3: Track chgs
A5: AMBER WINEP SCHEMES
C7: List of WINEP schemes that were unconfirmed at FD
C8: The lines below are examples with some dummy inputs.
C9: WINEPID | D9: Unique ID | E9: Scheme category / name | F9: Unit | G9: Unit Conversion to £m | I9: Allowed totex unit rate | J9: Quantity in PR19 FD | K9: Quantity Delivered | L9: 1 = In FD, funded 0 = In FD, not funded | M9: Price Control | N9: Proportion Confirmed
C10: =WINEP_Inputs!A5 -> EX00001 | D10: =WINEP_Inputs!J5 -> XXW000001 | E10: =WINEP_Inputs!K5 -> Sample Fish Passage | F10: =WINEP_Inputs!CW5 -> £ per km LORI | G10: =WINEP_Inputs!CX5 -> 1e-06 | I10: =WINEP_Inputs!CR5 -> 30000 | J10: =WINEP_Inputs!CS5 -> 10 | K10: =WINEP_Inputs!CT5 -> 5 | L10: =WINEP_Inputs!CU5 -> 1 | M10: =WINEP_Inputs!CV5 -> WR | N10: =IF(K10 = 0, 0, K10 / J10) -> 0.5
C11: =WINEP_Inputs!A6 -> EX00002 | D11: =WINEP_Inputs!J6 -> XXW000002 | E11: =WINEP_Inputs!K6 -> Investigation - reservoirs | F11: =WINEP_Inputs!CW6 -> £ per reservoir | G11: =WINEP_Inputs!CX6 -> 1e-06 | I11: =WINEP_Inputs!CR6 -> 15000 | J11: =WINEP_Inputs!CS6 -> 20 | K11: =WINEP_Inputs!CT6 -> 17 | L11: =WINEP_Inputs!CU6 -> 1 | M11: =WINEP_Inputs!CV6 -> WR | N11: 0.85
C12: =WINEP_Inputs!A7 -> EX00003 | D12: =WINEP_Inputs!J7 -> XXW000003 | E12: =WINEP_Inputs!K7 -> Sample STW1 | F12: =WINEP_Inputs!CW7 -> £m | G12: =WINEP_Inputs!CX7 -> 1 | I12: =WINEP_Inputs!CR7 -> 3.4 | J12: =WINEP_Inputs!CS7 -> 1 | K12: =WINEP_Inputs!CT7 -> 1 | L12: =WINEP_Inputs!CU7 -> 0 | M12: =WINEP_Inputs!CV7 -> WWN | N12: 1
C13: =WINEP_Inputs!A8 -> EX00004 | D13: =WINEP_Inputs!J8 -> XXW000004 | E13: =WINEP_Inputs!K8 -> Sample STW2 | F13: =WINEP_Inputs!CW8 -> £ per p.e. | G13: =WINEP_Inputs!CX8 -> 1e-06 | I13: =WINEP_Inputs!CR8 -> 412 | J13: =WINEP_Inputs!CS8 -> 15800 | K13: =WINEP_Inputs!CT8 -> 15800 | L13: =WINEP_Inputs!CU8 -> 1 | M13: =WINEP_Inputs!CV8 -> WWN | N13: 1
C14: =WINEP_Inputs!A9 -> EX00005 | D14: =WINEP_Inputs!J9 -> XXW000005 | E14: =WINEP_Inputs!K9 -> Sample STW3 | F14: =WINEP_Inputs!CW9 -> £ per p.e. | G14: =WINEP_Inputs!CX9 -> 1e-06 | I14: =WINEP_Inputs!CR9 -> 1937 | J14: =WINEP_Inputs!CS9 -> 800 | K14: =WINEP_Inputs!CT9 -> 800 | L14: =WINEP_Inputs!CU9 -> 1 | M14: =WINEP_Inputs!CV9 -> WWN | N14: 1
C15: =WINEP_Inputs!A10 -> EX00006 | D15: =WINEP_Inputs!J10 -> XXW000006 | E15: =WINEP_Inputs!K10 -> Sample STW4 | F15: =WINEP_Inputs!CW10 -> £m | G15: =WINEP_Inputs!CX10 -> 1 | I15: =WINEP_Inputs!CR10 -> 2.459 | J15: =WINEP_Inputs!CS10 -> 1 | K15: =WINEP_Inputs!CT10 -> 1 | L15: =WINEP_Inputs!CU10 -> 1 | M15: =WINEP_Inputs!CV10 -> WWN | N15: 1
A17: End of sheet

Sheet WINEP_Allowance
A1: =RIGHT(CELL("filename", $A$1), LEN(CELL("filename", $A$1)) - SEARCH("]", CELL("filename", $A$1))) -> WINEP_Allowance
F2: =Check!F2 -> 0 | G2: Checks
F3: =Check!F3 -> 5 | G3: Track chgs
A5: CALCULATION OF ADJUSTED ALLOWED COST FOR CONFIRMED SCHEMES
A7: List of Amber Schemes
B8: Calculate the adjusted allowed cost per scheme, £m and the WINEP reconciliation per control, £m
R9: WR | S9: WN | T9: WWN | U9: BR | V9: DMY
C10: =WINEP_Schemes!C9 -> WINEPID | D10: =WINEP_Schemes!D9 -> Unique ID | E10: =WINEP_Schemes!E9 -> Scheme category / name | F10: =WINEP_Schemes!F9 -> Unit | G10: =WINEP_Schemes!G9 -> Unit Conversion to £m | H10: =WINEP_Schemes!H9 -> 0 | I10: =WINEP_Schemes!J9 -> Quantity in PR19 FD | J10: =WINEP_Schemes!I9 -> Allowed totex unit rate | K10: =WINEP_Schemes!K9 -> Quantity Delivered | L10: =WINEP_Schemes!L9 -> 1 = In FD, funded 0 = In FD, not funded | M10: =WINEP_Schemes!M9 -> Price Control | N10: =WINEP_Schemes!N9 -> Proportion Confirmed | O10: FD Allowance, £m | P10: Adjusted Allowance (Delivered), £m | Q10: WINEP Reconciliation, £m | R10: Water Resources £m | S10: Water Network £m | T10: Wastewater Network £m | U10: Bioresources £m | V10: Dummy £m
C11: =WINEP_Schemes!C10 -> EX00001 | D11: =WINEP_Schemes!D10 -> XXW000001 | E11: =WINEP_Schemes!E10 -> Sample Fish Passage | F11: =WINEP_Schemes!F10 -> £ per km LORI | G11: =WINEP_Schemes!G10 -> 1e-06 | H11: =WINEP_Schemes!H10 -> 0 | I11: =WINEP_Schemes!J10 -> 10 | J11: =WINEP_Schemes!I10 -> 30000 | K11: =WINEP_Schemes!K10 -> 5 | L11: =WINEP_Schemes!L10 -> 1 | M11: =WINEP_Schemes!M10 -> WR | N11: =WINEP_Schemes!N10 -> 0.5 | O11: =I11 * J11 * G11 -> 0.3 | P11: =N11 * O11 -> 0.15 | Q11: =IF(L11 = 0, P11, (N11 - 1) * O11) -> -0.15 | R11: =IF($M11 = R$9, $Q11, 0) -> -0.15 | S11: =IF($M11 = S$9, $Q11, 0) -> 0 | T11: =IF($M11 = T$9, $Q11, 0) -> 0 | U11: =IF($M11 = U$9, $Q11, 0) -> 0 | V11: =IF($M11 = V$9, $Q11, 0) -> 0
C12: =WINEP_Schemes!C11 -> EX00002 | D12: =WINEP_Schemes!D11 -> XXW000002 | E12: =WINEP_Schemes!E11 -> Investigation - reservoirs | F12: =WINEP_Schemes!F11 -> £ per reservoir | G12: =WINEP_Schemes!G11 -> 1e-06 | H12: =WINEP_Schemes!H11 -> 0 | I12: =WINEP_Schemes!J11 -> 20 | J12: =WINEP_Schemes!I11 -> 15000 | K12: =WINEP_Schemes!K11 -> 17 | L12: =WINEP_Schemes!L11 -> 1 | M12: =WINEP_Schemes!M11 -> WR | N12: =WINEP_Schemes!N11 -> 0.85 | O12: =I12 * J12 * G12 -> 0.3 | P12: =N12 * O12 -> 0.255 | Q12: =IF(L12 = 0, P12, (N12 - 1) * O12) -> -0.045 | R12: =IF($M12 = R$9, $Q12, 0) -> -0.045 | S12: 0 | T12: 0 | U12: 0 | V12: 0
C13: =WINEP_Schemes!C12 -> EX00003 | D13: =WINEP_Schemes!D12 -> XXW000003 | E13: =WINEP_Schemes!E12 -> Sample STW1 | F13: =WINEP_Schemes!F12 -> £m | G13: =WINEP_Schemes!G12 -> 1 | H13: =WINEP_Schemes!H12 -> 0 | I13: =WINEP_Schemes!J12 -> 1 | J13: =WINEP_Schemes!I12 -> 3.4 | K13: =WINEP_Schemes!K12 -> 1 | L13: =WINEP_Schemes!L12 -> 0 | M13: =WINEP_Schemes!M12 -> WWN | N13: =WINEP_Schemes!N12 -> 1 | O13: =I13 * J13 * G13 -> 3.4 | P13: =N13 * O13 -> 3.4 | Q13: =IF(L13 = 0, P13, (N13 - 1) * O13) -> 3.4 | R13: 0 | S13: 0 | T13: 3.4 | U13: 0 | V13: 0
C14: =WINEP_Schemes!C13 -> EX00004 | D14: =WINEP_Schemes!D13 -> XXW000004 | E14: =WINEP_Schemes!E13 -> Sample STW2 | F14: =WINEP_Schemes!F13 -> £ per p.e. | G14: =WINEP_Schemes!G13 -> 1e-06 | H14: =WINEP_Schemes!H13 -> 0 | I14: =WINEP_Schemes!J13 -> 15800 | J14: =WINEP_Schemes!I13 -> 412 | K14: =WINEP_Schemes!K13 -> 15800 | L14: =WINEP_Schemes!L13 -> 1 | M14: =WINEP_Schemes!M13 -> WWN | N14: =WINEP_Schemes!N13 -> 1 | O14: =I14 * J14 * G14 -> 6.5096 | P14: =N14 * O14 -> 6.5096 | Q14: =IF(L14 = 0, P14, (N14 - 1) * O14) -> 0 | R14: 0 | S14: 0 | T14: 0 | U14: 0 | V14: 0
C15: =WINEP_Schemes!C14 -> EX00005 | D15: =WINEP_Schemes!D14 -> XXW000005 | E15: =WINEP_Schemes!E14 -> Sample STW3 | F15: =WINEP_Schemes!F14 -> £ per p.e. | G15: =WINEP_Schemes!G14 -> 1e-06 | H15: =WINEP_Schemes!H14 -> 0 | I15: =WINEP_Schemes!J14 -> 800 | J15: =WINEP_Schemes!I14 -> 1937 | K15: =WINEP_Schemes!K14 -> 800 | L15: =WINEP_Schemes!L14 -> 1 | M15: =WINEP_Schemes!M14 -> WWN | N15: =WINEP_Schemes!N14 -> 1 | O15: 1.5496 | P15: 1.5496 | Q15: 0 | R15: 0 | S15: 0 | T15: 0 | U15: 0 | V15: 0
C16: =WINEP_Schemes!C15 -> EX00006 | D16: =WINEP_Schemes!D15 -> XXW000006 | E16: =WINEP_Schemes!E15 -> Sample STW4 | F16: =WINEP_Schemes!F15 -> £m | G16: =WINEP_Schemes!G15 -> 1 | H16: =WINEP_Schemes!H15 -> 0 | I16: =WINEP_Schemes!J15 -> 1 | J16: =WINEP_Schemes!I15 -> 2.459 | K16: =WINEP_Schemes!K15 -> 1 | L16: =WINEP_Schemes!L15 -> 1 | M16: =WINEP_Schemes!M15 -> WWN | N16: =WINEP_Schemes!N15 -> 1 | O16: 2.459 | P16: 2.459 | Q16: 0 | R16: 0 | S16: 0 | T16: 0 | U16: 0 | V16: 0
A17: EXPAND OR REDUCE THE BLOCK ABOVE TO INCLUDE ALL SCHEMES ON THE INPUT SHEET
Q19: =SUM(Q11:Q16) -> 3.205 | R19: -0.195 | S19: 0 | T19: 3.4 | U19: 0 | V19: 0
B20: Check the total WINEP reconciliation against the sum of the price control totals
E22: Total WINEP Reconciliation | F22: =Q19 -> 3.205 | G22: £m
E23: Sum of the WINEP Reconciliation by price control | F23: =SUM(R19:V19) -> 3.205 | G23: £m
E25: Price Control Reconciliation vs Total Reconciliation - check | F25: =IF( F23 - F22 > Chk_Tol, 1, 0) -> 0 | G25: check
B27: Total WINEP reconciliation for each price control
E29: Total Final Reconciliation, water resources | F29: =R19 -> -0.195 | G29: £m
E30: Total Final Reconciliation, water network | F30: =S19 -> 0 | G30: £m
E31: Total Final Reconciliation, wastewater network | F31: =T19 -> 3.4 | G31: £m
E32: Total Final Reconciliation, bioresources | F32: =U19 -> 0 | G32: £m
E33: Total Final Reconciliation, dummy | F33: =V19 -> 0 | G33: £m
A36: End of sheet

Sheet Outputs >>

Sheet Annual_Outputs
A1: =RIGHT(CELL("filename", $A$1), LEN(CELL("filename", $A$1)) - SEARCH("]", CELL("filename", $A$1))) -> Annual_Outputs
E2: =Time!E25 -> Model period ending | F2: =Check!F2 -> 0 | G2: Checks | J2: =Time!J$25 -> 2019-03-31 | K2: =Time!K$25 -> 2020-03-31 | L2: =Time!L$25 -> 2021-03-31 | M2: =Time!M$25 -> 2022-03-31 | N2: =Time!N$25 -> 2023-03-31 | O2: =Time!O$25 -> 2024-03-31 | P2: =Time!P$25 -> 2025-03-31
E3: =Time!E107 -> Timeline label | F3: =Check!F3 -> 5 | G3: Track chgs | J3: =Time!J$107 -> Pre-Fcst | K3: =Time!K$107 -> Pre-Fcst | L3: =Time!L$107 -> Forecast | M3: =Time!M$107 -> Forecast | N3: =Time!N$107 -> Forecast | O3: =Time!O$107 -> Forecast | P3: =Time!P$107 -> Forecast
E4: =Time!E130 -> Financial year ending | J4: =Time!J$130 -> 2019 | K4: =Time!K$130 -> 2020 | L4: =Time!L$130 -> 2021 | M4: =Time!M$130 -> 2022 | N4: =Time!N$130 -> 2023 | O4: =Time!O$130 -> 2024 | P4: =Time!P$130 -> 2025
E5: =Time!E5 -> Model column counter | F5: Total | G5: Unit | J5: =Time!I$10 -> 0 | K5: =Time!J$10 -> 1 | L5: =Time!K$10 -> 2 | M5: =Time!L$10 -> 3 | N5: =Time!M$10 -> 4 | O5: =Time!N$10 -> 5 | P5: =Time!O$10 -> 6
A7: ANNUAL ALLOWED COST
B9: WINEP reconciliation profiled across final 3 years of period
E11: =WINEP_Allowance!E29 -> Total Final Reconciliation, water resources | F11: =WINEP_Allowance!F29 -> -0.195 | G11: =WINEP_Allowance!G29 -> £m
E12: =WINEP_Allowance!E30 -> Total Final Reconciliation, water network | F12: =WINEP_Allowance!F30 -> 0 | G12: =WINEP_Allowance!G30 -> £m
E13: =WINEP_Allowance!E31 -> Total Final Reconciliation, wastewater network | F13: =WINEP_Allowance!F31 -> 3.4 | G13: =WINEP_Allowance!G31 -> £m
E14: =WINEP_Allowance!E32 -> Total Final Reconciliation, bioresources | F14: =WINEP_Allowance!F32 -> 0 | G14: =WINEP_Allowance!G32 -> £m
E15: =WINEP_Allowance!E33 -> Total Final Reconciliation, dummy | F15: =WINEP_Allowance!F33 -> 0 | G15: =WINEP_Allowance!G33 -> £m
E17: =Time!E$93 -> Start of adjustment profiling flag | F17: =Time!F$93 -> 0 | G17: =Time!G$93 -> counter | H17: =Time!H$93 -> 3 | I17: =Time!I$93 -> 0 | J17: =Time!J$93 -> 0 | K17: =Time!K$93 -> 0 | L17: =Time!L$93 -> 0 | M17: =Time!M$93 -> 0 | N17: =Time!N$93 -> 1 | O17: =Time!O$93 -> 1 | P17: =Time!P$93 -> 1
E19: Total Final Reconciliation - profiled, water resources | G19: £m | H19: =SUM(J19:P19) -> -0.195 | J19: =IF( J$17 = 1, $F11 / 3, 0) -> 0 | K19: 0 | L19: 0 | M19: 0 | N19: =IF( N$17 = 1, $F11 / 3, 0) -> -0.065 | O19: =IF( O$17 = 1, $F11 / 3, 0) -> -0.065 | P19: -0.065
E20: Total Final Reconciliation - profiled, water network | G20: £m | H20: =SUM(J20:P20) -> 0 | J20: =IF( J$17 = 1, $F12 / 3, 0) -> 0 | K20: 0 | L20: 0 | M20: 0 | N20: =IF( N$17 = 1, $F12 / 3, 0) -> 0 | O20: 0 | P20: 0
E21: Total Final Reconciliation - profiled, wastewater network | G21: £m | H21: 3.4 | J21: =IF( J$17 = 1, $F13 / 3, 0) -> 0 | K21: 0 | L21: 0 | M21: 0 | N21: =IF( N$17 = 1, $F13 / 3, 0) -> 1.133333333 | O21: 1.133333333 | P21: 1.133333333
E22: Total Final Reconciliation - profiled, bioresources | G22: £m | H22: 0 | J22: =IF( J$17 = 1, $F14 / 3, 0) -> 0 | K22: 0 | L22: 0 | M22: 0 | N22: =IF( N$17 = 1, $F14 / 3, 0) -> 0 | O22: 0 | P22: 0
E23: Total Final Reconciliation - profiled, dummy | G23: £m | H23: 0 | J23: =IF( J$17 = 1, $F15 / 3, 0) -> 0 | K23: 0 | L23: 0 | M23: 0 | N23: =IF( N$17 = 1, $F15 / 3, 0) -> 0 | O23: 0 | P23: 0
C25: WINEP reconciliation for cost reconciliation model
E26: WINEP Reconciliation, water resources - without adjustment for time value of money | F26: =F19 -> 0 | G26: £m | H26: -0.195 | I26: 0 | J26: 0 | K26: 0 | L26: 0 | M26: 0 | N26: -0.065 | O26: -0.065 | P26: -0.065
E27: WINEP Reconciliation, water network - without adjustment for time value of money | F27: =F20 -> 0 | G27: £m | H27: 0 | I27: 0 | J27: 0 | K27: 0 | L27: 0 | M27: 0 | N27: 0 | O27: 0 | P27: 0
E28: WINEP Reconciliation, wastewater network - without adjustment for time value of money | F28: =F21 -> 0 | G28: £m | H28: 3.4 | I28: 0 | J28: 0 | K28: 0 | L28: 0 | M28: 0 | N28: 1.133333333 | O28: 1.133333333 | P28: 1.133333333
E29: WINEP Reconciliation, bioresources - without adjustment for time value of money | F29: =F22 -> 0 | G29: £m | H29: 0 | I29: 0 | J29: 0 | K29: 0 | L29: 0 | M29: 0 | N29: 0 | O29: 0 | P29: 0
E30: WINEP Reconciliation, dummy - without adjustment for time value of money | F30: =F23 -> 0 | G30: £m | H30: 0 | I30: 0 | J30: 0 | K30: 0 | L30: 0 | M30: 0 | N30: 0 | O30: 0 | P30: 0
B32: WINEP reconciliation adjusted for time value of money
E34: =InpActive!E$33 -> Financing cost index | F34: =InpActive!F$33 -> 0 | G34: =InpActive!G$33 -> Index | J34: =InpActive!J$33 -> 0 | K34: =InpActive!K$33 -> 0 | L34: =InpActive!L$33 -> 4 | M34: =InpActive!M$33 -> 3 | N34: =InpActive!N$33 -> 2 | O34: =InpActive!O$33 -> 1 | P34: =InpActive!P$33 -> 0
E35: =InpActive!E$35 -> Financing Cost | F35: =InpActive!F$35 -> 0.0292 | G35: =InpActive!G$35 -> %
E36: Time value of money factor | G36: Factor | J36: =(1+$F35) ^ J$34 -> 1 | K36: =(1+$F35) ^ K$34 -> 1 | L36: =(1+$F35) ^ L$34 -> 1.122016155 | M36: 1.090182817 | N36: =(1+$F35) ^ N$34 -> 1.05925264 | O36: =(1+$F35) ^ O$34 -> 1.0292 | P36: =(1+$F35) ^ P$34 -> 1
E38: =E26 -> WINEP Reconciliation, water resources - without adjustment for time value of money | F38: =F26 -> 0 | G38: =G26 -> £m | H38: =H26 -> -0.195 | I38: 0 | J38: =J26 -> 0 | K38: 0 | L38: 0 | M38: 0 | N38: -0.065 | O38: -0.065 | P38: =P26 -> -0.065
E39: =E27 -> WINEP Reconciliation, water network - without adjustment for time value of money | F39: 0 | G39: £m | H39: =H27 -> 0 | I39: 0 | J39: =J27 -> 0 | K39: 0 | L39: 0 | M39: 0 | N39: 0 | O39: 0 | P39: =P27 -> 0
E40: WINEP Reconciliation, wastewater network - without adjustment for time value of money | F40: 0 | G40: £m | H40: =H28 -> 3.4 | I40: 0 | J40: =J28 -> 0 | K40: 0 | L40: 0 | M40: 0 | N40: 1.133333333 | O40: 1.133333333 | P40: =P28 -> 1.133333333
E41: WINEP Reconciliation, bioresources - without adjustment for time value of money | F41: 0 | G41: £m | H41: =H29 -> 0 | I41: 0 | J41: =J29 -> 0 | K41: 0 | L41: 0 | M41: 0 | N41: 0 | O41: 0 | P41: =P29 -> 0
E42: WINEP Reconciliation, dummy - without adjustment for time value of money | F42: 0 | G42: £m | H42: =H30 -> 0 | I42: 0 | J42: =J30 -> 0 | K42: 0 | L42: 0 | M42: 0 | N42: 0 | O42: 0 | P42: =P30 -> 0
E44: =E$36 -> Time value of money factor | F44: =F$36 -> 0 | G44: Factor | H44: 0 | I44: 0 | J44: 1 | K44: 1 | L44: 1.122016155 | M44: 1.090182817 | N44: 1.05925264 | O44: 1.0292 | P44: =P$36 -> 1
C46: WINEP reconciliation for PR24 RCV adjustment
E47: WINEP Reconciliation, water resources - adjusted for time value of money | G47: £m | H47: =SUM(J47:P47) -> -0.2007494216 | J47: =J38 * J$44 -> 0 | K47: 0 | L47: 0 | M47: 0 | N47: -0.0688514216 | O47: -0.066898 | P47: -0.065
E48: WINEP Reconciliation, water network - adjusted for time value of money | G48: £m | H48: =SUM(J48:P48) -> 0 | J48: =J39 * J$44 -> 0 | K48: 0 | L48: 0 | M48: 0 | N48: =N39 * N$44 -> 0 | O48: 0 | P48: =P39 * P$44 -> 0
E49: WINEP Reconciliation, wastewater network - adjusted for time value of money | G49: £m | H49: 3.500246325 | J49: =J40 * J$44 -> 0 | K49: 0 | L49: 0 | M49: 0 | N49: =N40 * N$44 -> 1.200486325 | O49: 1.166426667 | P49: =P40 * P$44 -> 1.133333333
E50: WINEP Reconciliation, bioresources - adjusted for time value of money | G50: £m | H50: 0 | J50: =J41 * J$44 -> 0 | K50: 0 | L50: 0 | M50: 0 | N50: =N41 * N$44 -> 0 | O50: 0 | P50: =P41 * P$44 -> 0
E51: WINEP Reconciliation, dummy - adjusted for time value of money | G51: £m | H51: 0 | J51: =J42 * J$44 -> 0 | K51: 0 | L51: 0 | M51: 0 | N51: =N42 * N$44 -> 0 | O51: 0 | P51: =P42 * P$44 -> 0
A54: End of sheet

Sheet F_Outputs
C1: PR19FM007_WINEP_Out
A2: Acronym | B2: Reference | C2: Item description | D2: Unit | E2: Model | F2: 2022-23 | G2: 2023-24 | H2: 2024-25 | I2: 2020-25
B4: BoN | C4: =Annual_Outputs!E26 -> WINEP Reconciliation, water resources - without adjustment for time value of money | D4: £m | E4: Price Review 2019 | F4: =Annual_Outputs!N26 -> -0.065 | G4: =Annual_Outputs!O26 -> -0.065 | H4: =Annual_Outputs!P26 -> -0.065 | I4: =Annual_Outputs!H26 -> -0.195
B5: BoN | C5: =Annual_Outputs!E27 -> WINEP Reconciliation, water network - without adjustment for time value of money | D5: £m | E5: Price Review 2019 | F5: =Annual_Outputs!N27 -> 0 | G5: =Annual_Outputs!O27 -> 0 | H5: =Annual_Outputs!P27 -> 0 | I5: =Annual_Outputs!H27 -> 0
B6: BoN | C6: =Annual_Outputs!E28 -> WINEP Reconciliation, wastewater network - without adjustment for time value of money | D6: £m | E6: Price Review 2019 | F6: =Annual_Outputs!N28 -> 1.133333333 | G6: =Annual_Outputs!O28 -> 1.133333333 | H6: =Annual_Outputs!P28 -> 1.133333333 | I6: =Annual_Outputs!H28 -> 3.4
B7: BoN | C7: =Annual_Outputs!E29 -> WINEP Reconciliation, bioresources - without adjustment for time value of money | D7: £m | E7: Price Review 2019 | F7: =Annual_Outputs!N29 -> 0 | G7: =Annual_Outputs!O29 -> 0 | H7: =Annual_Outputs!P29 -> 0 | I7: =Annual_Outputs!H29 -> 0
B8: BoN | C8: =Annual_Outputs!E30 -> WINEP Reconciliation, dummy - without adjustment for time value of money | D8: £m | E8: Price Review 2019 | F8: =Annual_Outputs!N30 -> 0 | G8: =Annual_Outputs!O30 -> 0 | H8: =Annual_Outputs!P30 -> 0 | I8: =Annual_Outputs!H30 -> 0
B9: BoN | C9: =Annual_Outputs!E47 -> WINEP Reconciliation, water resources - adjusted for time value of money | D9: £m | E9: Price Review 2019 | F9: =Annual_Outputs!N47 -> -0.0688514216 | G9: =Annual_Outputs!O47 -> -0.066898 | H9: =Annual_Outputs!P47 -> -0.065 | I9: =Annual_Outputs!H47 -> -0.2007494216
B10: BoN | C10: =Annual_Outputs!E48 -> WINEP Reconciliation, water network - adjusted for time value of money | D10: £m | E10: Price Review 2019 | F10: =Annual_Outputs!N48 -> 0 | G10: =Annual_Outputs!O48 -> 0 | H10: =Annual_Outputs!P48 -> 0 | I10: =Annual_Outputs!H48 -> 0
B11: BoN | C11: =Annual_Outputs!E49 -> WINEP Reconciliation, wastewater network - adjusted for time value of money | D11: £m | E11: Price Review 2019 | F11: =Annual_Outputs!N49 -> 1.200486325 | G11: =Annual_Outputs!O49 -> 1.166426667 | H11: =Annual_Outputs!P49 -> 1.133333333 | I11: =Annual_Outputs!H49 -> 3.500246325
B12: BoN | C12: =Annual_Outputs!E50 -> WINEP Reconciliation, bioresources - adjusted for time value of money | D12: £m | E12: Price Review 2019 | F12: =Annual_Outputs!N50 -> 0 | G12: =Annual_Outputs!O50 -> 0 | H12: =Annual_Outputs!P50 -> 0 | I12: =Annual_Outputs!H50 -> 0
B13: BoN | C13: =Annual_Outputs!E51 -> WINEP Reconciliation, dummy - adjusted for time value of money | D13: £m | E13: Price Review 2019 | F13: =Annual_Outputs!N51 -> 0 | G13: =Annual_Outputs!O51 -> 0 | H13: =Annual_Outputs!P51 -> 0 | I13: =Annual_Outputs!H51 -> 0
B14: BoN_QA1 | C14: WINEP reconciliation model date stamp | D14: text | E14: Price Review 2019 | F14: =CONCATENATE("[…]", TEXT(NOW(), "dd/mm/yyy hh:mm:ss")) -> […]01/12/2020 17:14:13 | G14: […]01/12/2020 17:14:13 | H14: […]01/12/2020 17:14:13 | I14: […]01/12/2020 17:14:13
B15: BoN_QA2 | C15: WINEP reconciliation model time stamp | D15: text | E15: Price Review 2019 | F15: […]01/12/2020 17:14:13 | G15: […]01/12/2020 17:14:13 | H15: […]01/12/2020 17:14:13 | I15: […]01/12/2020 17:14:13
A18: End of sheet

Sheet QA >>

Sheet Track
A1: =RIGHT(CELL("filename", $A$1), LEN(CELL("filename", $A$1)) - SEARCH("]", CELL("filename", $A$1))) -> Track | M1: do not del col | O1: do not del col
F2: =Check!$F$2 -> 0 | G2: Checks | J2: =SUM(J7:J28) -> 5
F3: =J2 -> 5 | G3: Track chgs
G5: Unit | J5: =MATCH($H$6, M6:O6, 0) -> 2 | K5: Difference | L5: Diff %
E6: Comparison column label | H6: Nil inputs | N6: Nil inputs
E7: [do not delete row]
A8: INPUTS
J9: =IF(ABS(K9) > InpActive!$F$42, 1, 0) -> 0 | K9: =H9 - INDEX(M9:O9, $J$5) -> 0 | L9: =IF(ABS(K9) > InpActive!$F$42, IF(INDEX(M9:O9, $J$5) = 0, 0, H9 / INDEX(M9:O9, $J$5) - 1), 0) -> 0
C10: Inputs | J10: =IF(ABS(K10) > InpActive!$F$42, 1, 0) -> 0 | K10: 0 | L10: =IF(ABS(K10) > InpActive!$F$42, IF(INDEX(M10:O10, $J$5) = 0, 0, H10 / INDEX(M10:O10, $J$5) - 1), 0) -> 0
E11: =InpActive!E35 -> Financing Cost | G11: =InpActive!G35 -> % | H11: =InpActive!F35 -> 0.0292 | J11: =IF(ABS(K11) > InpActive!$F$42, 1, 0) -> 1 | K11: 0.0292 | L11: =IF(ABS(K11) > InpActive!$F$42, IF(INDEX(M11:O11, $J$5) = 0, 0, H11 / INDEX(M11:O11, $J$5) - 1), 0) -> 0 | N11: 0
J12: =IF(ABS(K12) > InpActive!$F$42, 1, 0) -> 0 | K12: 0 | L12: =IF(ABS(K12) > InpActive!$F$42, IF(INDEX(M12:O12, $J$5) = 0, 0, H12 / INDEX(M12:O12, $J$5) - 1), 0) -> 0 | N12: 0
J13: =IF(ABS(K13) > InpActive!$F$42, 1, 0) -> 0 | K13: 0 | L13: =IF(ABS(K13) > InpActive!$F$42, IF(INDEX(M13:O13, $J$5) = 0, 0, H13 / INDEX(M13:O13, $J$5) - 1), 0) -> 0 | N13: 0
C14: Outputs | J14: =IF(ABS(K14) > InpActive!$F$42, 1, 0) -> 0 | K14: 0 | L14: =IF(ABS(K14) > InpActive!$F$42, IF(INDEX(M14:O14, $J$5) = 0, 0, H14 / INDEX(M14:O14, $J$5) - 1), 0) -> 0
E15: =Annual_Outputs!E26 -> WINEP Reconciliation, water resources - without adjustment for time value of money | G15: =Annual_Outputs!G26 -> £m | H15: =Annual_Outputs!H26 -> -0.195 | J15: =IF(ABS(K15) > InpActive!$F$42, 1, 0) -> 1 | K15: -0.195 | L15: =IF(ABS(K15) > InpActive!$F$42, IF(INDEX(M15:O15, $J$5) = 0, 0, H15 / INDEX(M15:O15, $J$5) - 1), 0) -> 0 | N15: 0
E16: =Annual_Outputs!E27 -> WINEP Reconciliation, water network - without adjustment for time value of money | G16: =Annual_Outputs!G27 -> £m | H16: =Annual_Outputs!H27 -> 0 | J16: =IF(ABS(K16) > InpActive!$F$42, 1, 0) -> 0 | K16: 0 | L16: =IF(ABS(K16) > InpActive!$F$42, IF(INDEX(M16:O16, $J$5) = 0, 0, H16 / INDEX(M16:O16, $J$5) - 1), 0) -> 0 | N16: 0
E17: =Annual_Outputs!E28 -> WINEP Reconciliation, wastewater network - without adjustment for time value of money | G17: =Annual_Outputs!G28 -> £m | H17: =Annual_Outputs!H28 -> 3.4 | J17: =IF(ABS(K17) > InpActive!$F$42, 1, 0) -> 1 | K17: =H17 - INDEX(M17:O17, $J$5) -> 3.4 | L17: =IF(ABS(K17) > InpActive!$F$42, IF(INDEX(M17:O17, $J$5) = 0, 0, H17 / INDEX(M17:O17, $J$5) - 1), 0) -> 0 | N17: 0
E18: =Annual_Outputs!E29 -> WINEP Reconciliation, bioresources - without adjustment for time value of money | G18: =Annual_Outputs!G29 -> £m | H18: =Annual_Outputs!H29 -> 0 | J18: =IF(ABS(K18) > InpActive!$F$42, 1, 0) -> 0 | K18: 0 | L18: =IF(ABS(K18) > InpActive!$F$42, IF(INDEX(M18:O18, $J$5) = 0, 0, H18 / INDEX(M18:O18, $J$5) - 1), 0) -> 0 | N18: 0
E19: =Annual_Outputs!E30 -> WINEP Reconciliation, dummy - without adjustment for time value of money | G19: =Annual_Outputs!G30 -> £m | H19: =Annual_Outputs!H30 -> 0 | J19: =IF(ABS(K19) > InpActive!$F$42, 1, 0) -> 0 | K19: 0 | L19: =IF(ABS(K19) > InpActive!$F$42, IF(INDEX(M19:O19, $J$5) = 0, 0, H19 / INDEX(M19:O19, $J$5) - 1), 0) -> 0 | N19: 0
E20: =Annual_Outputs!E47 -> WINEP Reconciliation, water resources - adjusted for time value of money | G20: =Annual_Outputs!G47 -> £m | H20: =Annual_Outputs!H47 -> -0.2007494216 | J20: =IF(ABS(K20) > InpActive!$F$42, 1, 0) -> 1 | K20: =H20 - INDEX(M20:O20, $J$5) -> -0.2007494216 | L20: =IF(ABS(K20) > InpActive!$F$42, IF(INDEX(M20:O20, $J$5) = 0, 0, H20 / INDEX(M20:O20, $J$5) - 1), 0) -> 0 | N20: 0
E21: =Annual_Outputs!E48 -> WINEP Reconciliation, water network - adjusted for time value of money | G21: =Annual_Outputs!G48 -> £m | H21: =Annual_Outputs!H48 -> 0 | J21: =IF(ABS(K21) > InpActive!$F$42, 1, 0) -> 0 | K21: =H21 - INDEX(M21:O21, $J$5) -> 0 | L21: =IF(ABS(K21) > InpActive!$F$42, IF(INDEX(M21:O21, $J$5) = 0, 0, H21 / INDEX(M21:O21, $J$5) - 1), 0) -> 0 | N21: 0
E22: =Annual_Outputs!E49 -> WINEP Reconciliation, wastewater network - adjusted for time value of money | G22: =Annual_Outputs!G49 -> £m | H22: =Annual_Outputs!H49 -> 3.500246325 | J22: =IF(ABS(K22) > InpActive!$F$42, 1, 0) -> 1 | K22: 3.500246325 | L22: =IF(ABS(K22) > InpActive!$F$42, IF(INDEX(M22:O22, $J$5) = 0, 0, H22 / INDEX(M22:O22, $J$5) - 1), 0) -> 0 | N22: 0
E23: =Annual_Outputs!E50 -> WINEP Reconciliation, bioresources - adjusted for time value of money | G23: =Annual_Outputs!G50 -> £m | H23: =Annual_Outputs!H50 -> 0 | J23: =IF(ABS(K23) > InpActive!$F$42, 1, 0) -> 0 | K23: 0 | L23: =IF(ABS(K23) > InpActive!$F$42, IF(INDEX(M23:O23, $J$5) = 0, 0, H23 / INDEX(M23:O23, $J$5) - 1), 0) -> 0 | N23: 0
E24: =Annual_Outputs!E51 -> WINEP Reconciliation, dummy - adjusted for time value of money | G24: =Annual_Outputs!G51 -> £m | H24: =Annual_Outputs!H51 -> 0 | J24: =IF(ABS(K24) > InpActive!$F$42, 1, 0) -> 0 | K24: 0 | L24: =IF(ABS(K24) > InpActive!$F$42, IF(INDEX(M24:O24, $J$5) = 0, 0, H24 / INDEX(M24:O24, $J$5) - 1), 0) -> 0 | N24: 0
J25: =IF(ABS(K25) > InpActive!$F$42, 1, 0) -> 0 | K25: 0 | L25: =IF(ABS(K25) > InpActive!$F$42, IF(INDEX(M25:O25, $J$5) = 0, 0, H25 / INDEX(M25:O25, $J$5) - 1), 0) -> 0 | N25: 0
J26: =IF(ABS(K26) > InpActive!$F$42, 1, 0) -> 0 | K26: 0 | L26: =IF(ABS(K26) > InpActive!$F$42, IF(INDEX(M26:O26, $J$5) = 0, 0, H26 / INDEX(M26:O26, $J$5) - 1), 0) -> 0 | N26: 0
A28: INFO ONLY
E30: Date | H30: =TODAY() -> 2020-12-01
E31: Time | H31: =NOW() -> 44166.71821
E32: File | H32: =MID(CELL("filename",$A$1), SEARCH("[", CELL("filename",$A$1)) + 1, SEARCH("]", CELL("filename",$A$1)) - SEARCH("[", CELL("filename",$A$1)) - 1) -> WINEP-Reconciliation-Model-Dec-2020-v1n.xlsm
E33: [do not delete row] | J33: range end
E35: Comment: Key input and logic changes | N35: Nil inputs
E36: Comment: Key result changes
A38: End of sheet

Sheet Check
A1: =RIGHT(CELL("filename", $A$1), LEN(CELL("filename", $A$1)) - SEARCH("]", CELL("filename", $A$1))) -> Check
F2: =F11 -> 0 | G2: Checks
F3: =F24 -> 5 | G3: Track chgs
F5: Constant | G5: Unit
A7: CHECK SUMMARY
A9: MODEL INTEGRITY CHECKS
E11: Total model integrity checks | F11: =SUM(F16:F21) -> 0
E13: [do not delete row]
B15: WINEP RECONCILIATION
E16: =WINEP_Allowance!E25 -> Price Control Reconciliation vs Total Reconciliation - check | F16: =WINEP_Allowance!F25 -> 0 | G16: =WINEP_Allowance!G25 -> check
B18: TIME
E19: =Time!E121 -> Modelling period check | F19: =Time!F121 -> 0 | G19: =Time!G121 -> check
E22: [do not delete row]
E24: Total track changes | F24: =Track!J2 -> 5
A27: End of sheet
